fUSD/lending_fUSD_20250107
["ID","MTS","AMOUNT","RATE_DAILY","PERIOD"]
[347982475,1736260240791,-500.0,0.0001004,2]
[347982477,1736260240801,-500.0,0.0001004,2]
[347982479,1736260240813,-500.0,0.0001004,2]
[347982482,1736260240823,-657.94,0.0001004,2]
[347982484,1736260240833,-500.0,0.0001004,2]
[347982486,1736260240843,-500.0,0.0001004,2]
[347982487,1736260240852,-500.0,0.0001004,2]
[347982490,1736260240862,-500.0,0.0001004,2]
[347982492,1736260240872,-500.0,0.0001004,2]
[347982494,1736260240882,-690.43,0.0001004,2]
[347982496,1736260240892,-500.0,0.0001004,2]
[347982498,1736260240902,-500.0,0.0001004,2]
[347982500,1736260240913,-500.0,0.0001004,2]
[347982502,1736260240922,-500.0,0.0001004,2]
[347982504,1736260240932,-500.0,0.0001004,2]
[347982506,1736260240942,-500.0,0.0001004,2]
[347982508,1736260240953,-500.0,0.0001004,2]
[347982510,1736260240963,-500.0,0.0001004,2]
[347982513,1736260240974,-500.0,0.0001004,2]
[347982515,1736260240983,-500.0,0.0001004,2]
[347982516,1736260240993,-500.0,0.0001004,2]
[347982519,1736260241003,-500.0,0.0001004,2]
[347982521,1736260241012,-500.0,0.0001004,2]
[347982523,1736260241022,-500.0,0.0001004,2]
[347982525,1736260241031,-500.0,0.0001004,2]
[347982527,1736260241041,-500.0,0.0001004,2]
[347982529,1736260241051,-588.73,0.0001004,2]
[347982531,1736260241064,-692.41,0.0001004,2]
[347982533,1736260241074,-500.0,0.0001004,2]
[347982535,1736260241084,-500.0,0.0001004,2]
[347982537,1736260241093,-500.0,0.0001004,2]
[347982539,1736260241103,-500.0,0.0001004,2]
[347982541,1736260241112,-417.95168914,0.0001004,2]
[347982543,1736260241122,-500.0,0.0001004,2]
[347982545,1736260241132,-500.0,0.0001004,2]
[347982547,1736260241142,-500.0,0.0001004,2]
[347982549,1736260241152,-500.0,0.0001004,2]
[347982551,1736260241162,-500.0,0.0001004,2]
[347982553,1736260241171,-500.0,0.0001004,2]
[347982555,1736260241182,-500.0,0.0001004,2]
[347982557,1736260241192,-500.0,0.0001004,2]
[347982559,1736260241203,-500.0,0.0001004,2]
[347982561,1736260241213,-500.0,0.0001004,2]
[347982564,1736260241223,-500.0,0.0001004,2]
[347982566,1736260241233,-500.0,0.0001004,2]
[347982568,1736260241243,-500.0,0.0001004,2]
[347982569,1736260241253,-500.0,0.0001004,2]
[347982570,1736260241262,-723.26,0.0001004,2]
[347982571,1736260241272,-500.0,0.0001004,2]
[347982572,1736260241281,-500.0,0.0001004,2]
[347982573,1736260241292,-500.0,0.0001004,2]
[347982574,1736260241303,-500.0,0.0001004,2]
[347982575,1736260241314,-500.0,0.0001004,2]
[347982576,1736260241325,-500.0,0.0001004,2]
[347982577,1736260241335,-500.0,0.0001004,2]
[347982579,1736260241345,-500.0,0.0001004,2]
[347982581,1736260241355,-500.0,0.0001004,2]
[347982583,1736260241364,-500.0,0.0001004,2]
[347982585,1736260241374,-500.0,0.0001004,2]
[347982587,1736260241384,-500.0,0.0001004,2]
[347982589,1736260241395,-500.0,0.0001004,2]
[347982591,1736260241404,-500.0,0.0001004,2]
[347982593,1736260241414,-500.0,0.0001004,2]
[347982595,1736260241424,-500.0,0.0001004,2]
[347982597,1736260241434,-500.0,0.0001004,2]
[347982599,1736260241444,-500.0,0.0001004,2]
[347982601,1736260241454,-500.0,0.0001004,2]
[347982603,1736260241464,-500.0,0.0001004,2]
[347982605,1736260241474,-500.0,0.0001004,2]
[347982607,1736260241485,-500.0,0.0001004,2]
[347982609,1736260241495,-500.0,0.0001004,2]
[347982611,1736260241505,-500.0,0.0001004,2]
[347982613,1736260241514,-500.0,0.0001004,2]
[347982615,1736260241524,-500.0,0.0001004,2]
[347982617,1736260241534,-673.6,0.0001004,2]
[347982619,1736260241543,-500.0,0.0001004,2]
[347982621,1736260241553,-500.0,0.0001004,2]
[347982623,1736260241564,-500.0,0.0001004,2]
[347982625,1736260241574,-500.0,0.0001004,2]
[347982628,1736260241587,-500.0,0.0001004,2]
[347982629,1736260241597,-500.0,0.0001004,2]
[347982631,1736260241608,-500.0,0.0001004,2]
[347982633,1736260241618,-500.0,0.0001004,2]
[347982635,1736260241628,-500.0,0.0001004,2]
[347982637,1736260241638,-500.0,0.0001004,2]
[347982639,1736260241648,-500.0,0.0001004,2]
[347982641,1736260241658,-500.0,0.0001004,2]
[347982643,1736260241667,-500.0,0.0001004,2]
[347982645,1736260241677,-500.0,0.0001004,2]
[347982647,1736260241687,-500.0,0.0001004,2]
[347982650,1736260241697,-500.0,0.0001004,2]
[347982652,1736260241707,-500.0,0.0001004,2]
[347982654,1736260241717,-500.0,0.0001004,2]
[347982656,1736260241727,-500.0,0.0001004,2]
[347982658,1736260241737,-500.0,0.0001004,2]
[347982660,1736260241747,-500.0,0.0001004,2]
[347982662,1736260241761,-509.79,0.0001004,2]
[347982664,1736260241770,-500.0,0.0001004,2]
[347982666,1736260241781,-442.51478924,0.0001004,2]
[347982668,1736260241795,-500.0,0.0001004,2]
[347982670,1736260241808,-500.0,0.0001004,2]
[347982672,1736260241819,-657.14,0.0001004,2]
[347982674,1736260241831,-500.0,0.0001004,2]
[347982676,1736260241841,-500.0,0.0001004,2]
[347982678,1736260241851,-500.0,0.0001004,2]
[347982680,1736260241862,-500.0,0.0001004,2]
[347982682,1736260241872,-500.0,0.0001004,2]
[347982684,1736260241882,-459.073056,0.0001004,2]
[347982686,1736260241893,-308.33552318,0.0001004,2]
[347982688,1736260241903,-500.0,0.0001004,2]
[347982690,1736260241913,-500.0,0.0001004,2]
[347982692,1736260241923,-500.0,0.0001004,2]
[347982694,1736260241933,-500.0,0.0001004,2]
[347982696,1736260241943,-500.0,0.0001004,2]
[347982698,1736260241953,-500.0,0.0001004,2]
[347982700,1736260241963,-500.0,0.0001004,2]
[347982702,1736260241973,-500.0,0.0001004,2]
[347982704,1736260241982,-500.0,0.0001004,2]
[347982707,1736260241992,-500.0,0.0001004,2]
[347982709,1736260242001,-500.0,0.0001004,2]
[347982710,1736260242011,-500.0,0.0001004,2]
[347982713,1736260242021,-500.0,0.0001004,2]
[347982715,1736260242030,-500.0,0.0001004,2]
[347982717,1736260242040,-500.0,0.0001004,2]
[347982719,1736260242050,-500.0,0.0001004,2]
[347982721,1736260242064,-500.0,0.0001004,2]
[347982723,1736260242074,-500.0,0.0001004,2]
[347982725,1736260242084,-680.53,0.0001004,2]
[347982727,1736260242094,-500.0,0.0001004,2]
[347982728,1736260242103,-500.0,0.0001004,2]
[347982731,1736260242113,-531.59,0.0001004,2]
[347982733,1736260242123,-500.0,0.0001004,2]
[347982735,1736260242133,-500.0,0.0001004,2]
[347982737,1736260242143,-500.0,0.0001004,2]
[347982739,1736260242152,-500.0,0.0001004,2]
[347982741,1736260242162,-500.0,0.0001004,2]
[347982743,1736260242171,-500.0,0.0001004,2]
[347982745,1736260242180,-500.0,0.0001004,2]
[347982747,1736260242190,-500.0,0.0001004,2]
[347982749,1736260242199,-500.0,0.0001004,2]
[347982751,1736260242209,-500.0,0.0001004,2]
[347982753,1736260242218,-500.0,0.0001004,2]
[347982755,1736260242228,-504.37,0.0001004,2]
[347982757,1736260242237,-500.0,0.0001004,2]
[347982759,1736260242247,-616.56993068,0.0001004,2]
[347982761,1736260242257,-500.0,0.0001004,2]
[347982763,1736260242266,-500.0,0.0001004,2]
[347982765,1736260242279,-500.0,0.0001004,2]
[347982767,1736260242289,-500.0,0.0001004,2]
[347982769,1736260242299,-500.0,0.0001004,2]
[347982771,1736260242313,-526.48,0.0001004,2]
[347982773,1736260242324,-500.0,0.0001004,2]
[347982775,1736260242334,-500.0,0.0001004,2]
[347982777,1736260242344,-500.0,0.0001004,2]
[347982779,1736260242354,-509.58,0.0001004,2]
[347982781,1736260242364,-500.0,0.0001004,2]
[347982783,1736260242374,-500.0,0.0001004,2]
[347982785,1736260242383,-500.0,0.0001004,2]
[347982787,1736260242394,-500.0,0.0001004,2]
[347982790,1736260242404,-500.0,0.0001004,2]
[347982791,1736260242414,-500.0,0.0001004,2]
[347982794,1736260242424,-500.0,0.0001004,2]
[347982796,1736260242434,-500.0,0.0001004,2]
[347982797,1736260242445,-500.0,0.0001004,2]
[347982799,1736260242455,-500.0,0.0001004,2]
[347982801,1736260242465,-500.0,0.0001004,2]
[347982803,1736260242475,-594.5,0.0001004,2]
[347982805,1736260242485,-847.88,0.0001004,2]
[347982808,1736260242495,-500.0,0.0001004,2]
[347982810,1736260242505,-500.0,0.0001004,2]
[347982812,1736260242514,-500.0,0.0001004,2]
[347982813,1736260242524,-500.0,0.0001004,2]
[347982816,1736260242535,-753.72,0.0001004,2]
[347982818,1736260242545,-500.0,0.0001004,2]
[347982820,1736260242555,-500.0,0.0001004,2]
[347982822,1736260242569,-500.0,0.0001004,2]
[347982824,1736260242578,-500.0,0.0001004,2]
[347982826,1736260242589,-500.0,0.0001004,2]
[347982828,1736260242602,-500.0,0.0001004,2]
[347982830,1736260242612,-500.0,0.0001004,2]
[347982832,1736260242622,-500.0,0.0001004,2]
[347982834,1736260242632,-500.0,0.0001004,2]
[347982836,1736260242642,-500.0,0.0001004,2]
[347982838,1736260242652,-500.0,0.0001004,2]
[347982840,1736260242662,-500.0,0.0001004,2]
[347982842,1736260242672,-500.0,0.0001004,2]
[347982844,1736260242682,-500.0,0.0001004,2]
[347982846,1736260242692,-613.72608689,0.0001004,2]
[347982848,1736260242702,-500.0,0.0001004,2]
[347982850,1736260242711,-648.38,0.0001004,2]
[347982852,1736260242722,-500.0,0.0001004,2]
[347982854,1736260242732,-500.0,0.0001004,2]
[347982856,1736260242742,-500.0,0.0001004,2]
[347982858,1736260242756,-500.0,0.0001004,2]
[347982860,1736260242766,-500.0,0.0001004,2]
[347982862,1736260242776,-500.0,0.0001004,2]
[347982864,1736260242786,-510.62,0.0001004,2]
[347982866,1736260242796,-500.0,0.0001004,2]
[347982868,1736260242806,-500.0,0.0001004,2]
[347982870,1736260242819,-500.0,0.0001004,2]
[347982872,1736260242829,-545.76787709,0.0001004,2]
[347982874,1736260242840,-500.0,0.0001004,2]
[347982876,1736260242850,-500.0,0.0001004,2]
[347982878,1736260242860,-558.78,0.0001004,2]
[347982879,1736260242869,-500.0,0.0001004,2]
[347982880,1736260242880,-535.4836573,0.0001004,2]
[347982881,1736260242890,-500.0,0.0001004,2]
[347982883,1736260242900,-1028.86,0.0001004,2]
[347982884,1736260242911,-500.0,0.0001004,2]
[347982885,1736260242921,-501.24,0.0001004,2]
[347982886,1736260242931,-500.0,0.0001004,2]
[347982887,1736260242941,-500.0,0.0001004,2]
[347982889,1736260242951,-566.85,0.0001004,2]
[347982891,1736260242961,-500.0,0.0001004,2]
[347982893,1736260242970,-500.0,0.0001004,2]
[347982895,1736260242980,-500.0,0.0001004,2]
[347982897,1736260242990,-500.0,0.0001004,2]
[347982899,1736260243000,-500.0,0.0001004,2]
[347982901,1736260243009,-500.0,0.0001004,2]
[347982903,1736260243019,-500.0,0.0001004,2]
[347982905,1736260243028,-500.0,0.0001004,2]
[347982907,1736260243038,-500.0,0.0001004,2]
[347982909,1736260243047,-500.0,0.0001004,2]
[347982911,1736260243061,-500.0,0.0001004,2]
[347982913,1736260243071,-500.0,0.0001004,2]
[347982938,1736260243288,-500.0,0.0001004,2]
[347982940,1736260243298,-500.0,0.0001004,2]
[347982942,1736260243311,-500.0,0.0001004,2]
[347982943,1736260243320,-500.0,0.0001004,2]
[347982944,1736260243329,-500.0,0.0001004,2]
[347982945,1736260243339,-500.0,0.0001004,2]
[347982946,1736260243348,-500.0,0.0001004,2]
[347982947,1736260243357,-701.49,0.0001004,2]
[347982948,1736260243368,-1004.12,0.0001004,2]
[347982949,1736260243378,-500.0,0.0001004,2]
[347982950,1736260243387,-500.0,0.0001004,2]
[347982951,1736260243396,-500.0,0.0001004,2]
[347982952,1736260243406,-500.0,0.0001004,2]
[347982953,1736260243415,-463.738574,0.0001004,2]
[347982954,1736260243425,-500.0,0.0001004,2]
[347982955,1736260243435,-500.0,0.0001004,2]
[347982956,1736260243444,-517.91,0.0001004,2]
[347982957,1736260243454,-500.0,0.0001004,2]
[347982958,1736260243465,-500.0,0.0001004,2]
[347982959,1736260243474,-500.0,0.0001004,2]
[347982960,1736260243483,-500.0,0.0001004,2]
[347982961,1736260243492,-500.0,0.0001004,2]
[347982962,1736260243502,-500.0,0.0001004,2]
[347982963,1736260243512,-500.0,0.0001004,2]
[347982964,1736260243521,-500.0,0.0001004,2]
[347982965,1736260243531,-500.0,0.0001004,2]
[347982966,1736260243543,-500.0,0.0001004,2]
[347982967,1736260243552,-500.0,0.0001004,2]
[347982968,1736260243567,-150.0,0.00010052,2]
[347982969,1736260243578,-150.0,0.00010056,2]
[347982970,1736260243589,-150.0,0.00010061,2]
[347982971,1736260243600,-150.0,0.0001007,2]
[347982972,1736260243610,-150.0,0.00010075,2]
[347982973,1736260243620,-153.0,0.00010077,2]
[347982974,1736260243630,-150.0,0.00010087,2]
[347982975,1736260243639,-153.0,0.00010092,2]
[347982976,1736260243649,-156.97740133,0.000101,2]
[347982977,1736260243658,-150.0,0.00010105,2]
[347982978,1736260243668,-150.0,0.00010122,2]
[347982979,1736260243677,-150.0,0.00010129,2]
[347982980,1736260243687,-150.0,0.00010133,2]
[347982981,1736260243696,-1267.0,0.00010136,2]
[347982982,1736260243706,-3893.0,0.00010136,2]
[347982983,1736260243715,-2014.0,0.00010136,2]
[347982984,1736260243725,-636.0,0.00010136,2]
[347982985,1736260243735,-150.0,0.00010136,2]
[347982986,1736260243744,-150.0,0.00010136,2]
[347982987,1736260243757,-9616.0,0.00010136,2]
[347982988,1736260243766,-634.0,0.00010136,2]
[347982989,1736260243775,-566.0,0.00010136,2]
[347982990,1736260243785,-1173.0,0.00010136,2]
[347982991,1736260243796,-498.93,0.00010137,2]
[347982992,1736260243805,-174.35,0.00010137,2]
[347982993,1736260243820,-800.0,0.00010138,2]
[347982994,1736260243829,-150.0,0.0001014,2]
[347982995,1736260243839,-150.0,0.00010157,2]
[347982996,1736260243848,-150.0,0.00010175,2]
[347982997,1736260243858,-150.0,0.0001019,2]
[347982998,1736260243868,-150.0,0.00010193,2]
[347982999,1736260243877,-150.0,0.00010197,2]
[347983000,1736260243887,-150.0,0.0001021,2]
[347983001,1736260243896,-150.0,0.00010228,2]
[347983002,1736260243906,-596.97,0.00010241,2]
[347983003,1736260243915,-4678.41,0.00010241,2]
[347983004,1736260243924,-500.0,0.00010241,2]
[347983005,1736260243934,-4245.17,0.00010241,2]
[347983006,1736260243943,-1738.92,0.00010241,2]
[347983007,1736260243952,-3642.51,0.00010241,2]
[347983008,1736260243962,-6929.39,0.00010241,2]
[347983009,1736260243971,-764.83,0.00010241,2]
[347983010,1736260243980,-660.5,0.00010241,2]
[347983011,1736260243990,-550.21,0.00010241,2]
[347983012,1736260243999,-500.0,0.00010241,2]
[347983013,1736260244008,-2304.06,0.00010241,2]
[347983014,1736260244018,-500.0,0.00010241,2]
[347983015,1736260244027,-500.0,0.00010241,2]
[347983016,1736260244036,-1673.54,0.00010241,2]
[347983017,1736260244046,-538.44,0.00010241,2]
[347983018,1736260244056,-891.67,0.00010241,2]
[347983019,1736260244070,-500.0,0.00010241,2]
[347983020,1736260244080,-2713.06,0.00010241,2]
[347983021,1736260244089,-500.0,0.00010241,2]
[347983023,1736260244099,-567.36,0.00010242,2]
[347983024,1736260244108,-500.0,0.00010242,2]
[347983026,1736260244118,-1477.62,0.00010242,2]
[347983028,1736260244127,-586.3,0.00010242,2]
[347983031,1736260244138,-500.0,0.00010242,2]
[347983033,1736260244147,-500.0,0.00010242,2]
[347983035,1736260244157,-542.61,0.00010242,2]
[347983037,1736260244167,-500.0,0.00010242,2]
[347983038,1736260244176,-1829.44,0.00010242,2]
[347983039,1736260244186,-516.72,0.00010242,2]
[347983040,1736260244195,-1174.4,0.00010242,2]
[347983041,1736260244205,-500.0,0.00010242,2]
[347983042,1736260244214,-1389.22,0.00010242,2]
[347983043,1736260244223,-858.15,0.00010242,2]
[347983044,1736260244233,-1376.04,0.00010242,2]
[347983045,1736260244242,-745.94,0.00010242,2]
[347983046,1736260244252,-675.0,0.00010242,2]
[347983047,1736260244261,-500.0,0.00010242,2]
[347983048,1736260244271,-746.19,0.00010242,2]
[347983049,1736260244280,-500.0,0.00010242,2]
[347983050,1736260244290,-500.0,0.00010242,2]
[347983051,1736260244300,-1329.13,0.00010242,2]
[347983052,1736260244312,-500.0,0.00010242,2]
[347983053,1736260244321,-2311.37,0.00010242,2]
[347983054,1736260244331,-540.21,0.00010242,2]
[347983055,1736260244342,-500.0,0.00010242,2]
[347983056,1736260244351,-1585.16,0.00010242,2]
[347983057,1736260244361,-500.0,0.00010242,2]
[347983058,1736260244371,-1533.01,0.00010242,2]
[347983059,1736260244382,-1610.18,0.00010242,2]
[347983060,1736260244391,-500.0,0.00010242,2]
[347983061,1736260244401,-832.32,0.00010242,2]
[347983062,1736260244411,-500.0,0.00010242,2]
[347983063,1736260244421,-500.0,0.00010242,2]
[347983064,1736260244431,-1820.98,0.00010242,2]
[347983065,1736260244440,-500.0,0.00010242,2]
[347983066,1736260244452,-1451.56,0.00010242,2]
[347983067,1736260244462,-500.0,0.00010242,2]
[347983068,1736260244473,-500.0,0.00010242,2]
[347983069,1736260244483,-500.0,0.00010242,2]
[347983070,1736260244493,-613.05,0.00010242,2]
[347983071,1736260244503,-500.0,0.00010242,2]
[347983073,1736260244512,-631.08,0.00010242,2]
[347983075,1736260244521,-500.0,0.00010242,2]
[347983077,1736260244531,-3399.27,0.00010242,2]
[347983078,1736260244541,-500.0,0.00010242,2]
[347983079,1736260244550,-770.29,0.00010242,2]
[347983080,1736260244562,-500.0,0.00010242,2]
[347983081,1736260244571,-1831.33,0.00010242,2]
[347983082,1736260244583,-565.2,0.00010242,2]
[347983083,1736260244596,-500.0,0.00010242,2]
[347983084,1736260244606,-500.0,0.00010242,2]
[347983085,1736260244617,-500.0,0.00010242,2]
[347983086,1736260244627,-1827.16,0.00010242,2]
[347983087,1736260244636,-1023.2,0.00010242,2]
[347983088,1736260244646,-574.4,0.00010242,2]
[347983089,1736260244656,-873.66,0.00010242,2]
[347983090,1736260244665,-2506.52,0.00010242,2]
[347983091,1736260244675,-1950.65,0.00010242,2]
[347983092,1736260244684,-701.27,0.00010242,2]
[347983093,1736260244694,-856.18,0.00010242,2]
[347983094,1736260244704,-842.52,0.00010242,2]
[347983095,1736260244714,-256.586678,0.00010242,2]
[347983096,1736260244723,-1545.48,0.00010242,2]
[347983097,1736260244733,-565.76,0.00010242,2]
[347983098,1736260244743,-531.28,0.00010242,2]
[347983099,1736260244755,-8819.26,0.00010242,2]
[347983100,1736260244764,-1955.43,0.00010242,2]
[347983101,1736260244773,-767.63,0.00010242,2]
[347983102,1736260244783,-500.0,0.00010242,2]
[347983103,1736260244793,-500.0,0.00010242,2]
[347983104,1736260244803,-318.614888,0.00010242,2]
[347983105,1736260244816,-2372.34,0.00010242,2]
[347983106,1736260244826,-2200.83,0.00010242,2]
[347983107,1736260244836,-3445.38,0.00010242,2]
[347983108,1736260244847,-500.0,0.00010242,2]
[347983109,1736260244858,-587.88,0.00010242,2]
[347983110,1736260244868,-1244.25,0.00010242,2]
[347983111,1736260244878,-1739.85,0.00010242,2]
[347983112,1736260244888,-780.79,0.00010242,2]
[347983113,1736260244897,-500.0,0.00010242,2]
[347983114,1736260244907,-500.0,0.00010242,2]
[347983115,1736260244917,-3786.3,0.00010242,2]
[347983116,1736260244926,-500.0,0.00010242,2]
[347983117,1736260244939,-503.76,0.00010242,2]
[347983118,1736260244950,-1182.44,0.00010242,2]
[347983119,1736260244959,-5804.12,0.00010242,2]
[347983120,1736260244969,-4920.76,0.00010242,2]
[347983121,1736260244978,-1100.37,0.00010242,2]
[347983122,1736260244988,-1881.61,0.00010242,2]
[347983123,1736260244998,-546.09,0.00010242,2]
[347983124,1736260245009,-561.16,0.00010242,2]
[347983125,1736260245019,-2436.95,0.00010242,2]
[347983126,1736260245029,-3329.05,0.00010242,2]
[347983127,1736260245039,-500.0,0.00010242,2]
[347983128,1736260245049,-2039.6,0.00010242,2]
[347983129,1736260245064,-1304.28,0.00010242,2]
[347983130,1736260245075,-6172.34,0.00010242,2]
[347983131,1736260245087,-1124.4,0.00010242,2]
[347983132,1736260245099,-3001.92,0.00010242,2]
[347983133,1736260245110,-2234.47,0.00010242,2]
[347983134,1736260245120,-1361.38,0.00010242,2]
[347983135,1736260245130,-6338.8,0.00010242,2]
[347983136,1736260245140,-1335.82,0.00010242,2]
[347983137,1736260245150,-500.0,0.00010242,2]
[347983138,1736260245161,-1566.35,0.00010242,2]
[347983139,1736260245171,-16927.22,0.00010242,2]
[347983140,1736260245182,-500.0,0.00010242,2]
[347983141,1736260245193,-500.0,0.00010242,2]
[347983142,1736260245203,-790.59,0.00010242,2]
[347983143,1736260245213,-1852.84,0.00010242,2]
[347983144,1736260245224,-1717.39,0.00010242,2]
[347983145,1736260245234,-500.0,0.00010242,2]
[347983146,1736260245244,-2824.78,0.00010242,2]
[347983147,1736260245254,-609.08,0.00010242,2]
[347983148,1736260245264,-5315.13,0.00010242,2]
[347983149,1736260245274,-809.37,0.00010242,2]
[347983150,1736260245285,-1604.36,0.00010242,2]
[347983151,1736260245294,-1710.39,0.00010242,2]
[347983152,1736260245304,-1146.82,0.00010242,2]
[347983153,1736260245321,-4589.96,0.00010242,2]
[347983154,1736260245331,-5115.42,0.00010242,2]
[347983155,1736260245340,-1501.95,0.00010242,2]
[347983156,1736260245350,-7312.35,0.00010242,2]
[347983157,1736260245360,-1994.56,0.00010242,2]
[347983158,1736260245370,-1142.44,0.00010242,2]
[347983159,1736260245381,-947.67,0.00010242,2]
[347983160,1736260245391,-1259.02,0.00010242,2]
[347983161,1736260245402,-500.0,0.00010242,2]
[347983162,1736260245412,-716.71,0.00010242,2]
[347983163,1736260245422,-500.0,0.00010242,2]
[347983164,1736260245432,-15000.0,0.00010242,2]
[347983165,1736260245442,-1086.85,0.00010243,2]
[347983166,1736260245452,-500.0,0.00010243,2]
[347983167,1736260245461,-1627.5,0.00010243,2]
[347983168,1736260245471,-1433.05,0.00010243,2]
[347983169,1736260245481,-1709.11,0.00010243,2]
[347983170,1736260245491,-1014.97,0.00010243,2]
[347983171,1736260245501,-695.83,0.00010243,2]
[347983172,1736260245512,-606.73,0.00010243,2]
[347983173,1736260245522,-925.73,0.00010243,2]
[347983174,1736260245532,-946.72,0.00010243,2]
[347983175,1736260245542,-674.46,0.00010243,2]
[347983176,1736260245552,-500.0,0.00010243,2]
[347983177,1736260245566,-1283.58,0.00010243,2]
[347983178,1736260245575,-611.2,0.00010243,2]
[347983179,1736260245589,-773.53,0.00010243,2]
[347983180,1736260245601,-863.99,0.00010243,2]
[347983181,1736260245612,-834.44,0.00010243,2]
[347983182,1736260245622,-530.36,0.00010243,2]
[347983183,1736260245632,-500.0,0.00010243,2]
[347983184,1736260245643,-764.9,0.00010243,2]
[347983185,1736260245722,-652.57,0.00010243,2]
[347983186,1736260245733,-932.67,0.00010243,2]
[347983187,1736260245743,-823.81,0.00010243,2]
[347983188,1736260245754,-709.88,0.00010243,2]
[347983189,1736260245764,-1214.87,0.00010243,2]
[347983190,1736260245774,-510.5,0.00010243,2]
[347983191,1736260245784,-699.35,0.00010243,2]
[347983192,1736260245793,-772.7,0.00010243,2]
[347983193,1736260245805,-607.23,0.00010243,2]
[347983194,1736260245819,-561.28,0.00010243,2]
[347983195,1736260245832,-500.0,0.00010243,2]
[347983196,1736260245844,-1488.4,0.00010243,2]
[347983197,1736260245853,-697.66,0.00010243,2]
[347983198,1736260245863,-1083.42,0.00010243,2]
[347983201,1736260245872,-606.1,0.00010243,2]
[347983203,1736260245882,-1593.68,0.00010243,2]
[347983204,1736260245891,-1051.23,0.00010243,2]
[347983205,1736260245902,-500.0,0.00010243,2]
[347983206,1736260245911,-500.0,0.00010243,2]
[347983207,1736260245921,-1186.65,0.00010243,2]
[347983208,1736260245931,-828.73,0.00010243,2]
[347983209,1736260245941,-2294.73,0.00010243,2]
[347983210,1736260245951,-306.711377,0.00010243,2]
[347983211,1736260245961,-500.0,0.00010243,2]
[347983212,1736260245971,-1116.38,0.00010243,2]
[347983213,1736260245980,-996.63,0.00010243,2]
[347983214,1736260245990,-2347.57,0.00010243,2]
[347983215,1736260246000,-825.17,0.00010243,2]
[347983216,1736260246010,-875.46,0.00010243,2]
[347983217,1736260246020,-500.0,0.00010243,2]
[347983218,1736260246030,-749.31,0.00010243,2]
[347983219,1736260246039,-1282.38,0.00010243,2]
[347983220,1736260246049,-653.0,0.00010243,2]
[347983221,1736260246063,-660.98,0.00010243,2]
[347983222,1736260246072,-1169.11,0.00010243,2]
[347983223,1736260246083,-500.0,0.00010243,2]
[347983224,1736260246092,-691.9,0.00010243,2]
[347983225,1736260246102,-9876.7,0.00010243,2]
[347983226,1736260246111,-592.17,0.00010243,2]
[347983227,1736260246121,-500.0,0.00010243,2]
[347983228,1736260246131,-3772.62,0.00010243,2]